fUSD/lending_fUSD_20241220
["ID","MTS","AMOUNT","RATE_DAILY","PERIOD"]
[346105533,1734706255291,-1676.58,0.00022465,4]
[346105534,1734706255300,-500.0,0.00022465,4]
[346105535,1734706255313,-500.0,0.00022465,4]
[346105536,1734706255323,-1032.97,0.00022465,4]
[346105537,1734706255334,-500.0,0.00022465,4]
[346105538,1734706255343,-500.0,0.00022465,4]
[346105539,1734706255352,-500.0,0.00022465,4]
[346105540,1734706255362,-628.86,0.00022465,4]
[346105541,1734706255371,-1541.57,0.00022465,4]
[346105542,1734706255381,-500.0,0.00022465,4]
[346105543,1734706255390,-2244.96,0.00022465,4]
[346105544,1734706255399,-500.0,0.00022465,4]
[346105545,1734706255409,-500.0,0.00022465,4]
[346105546,1734706255418,-812.21,0.00022465,4]
[346105547,1734706255428,-500.0,0.00022465,4]
[346105548,1734706255438,-500.0,0.00022465,4]
[346105549,1734706255447,-500.0,0.00022465,4]
[346105550,1734706255457,-1809.6,0.00022465,4]
[346105551,1734706255467,-500.0,0.00022465,4]
[346105552,1734706255476,-500.0,0.00022465,4]
[346105553,1734706255485,-500.0,0.00022465,4]
[346105554,1734706255495,-500.0,0.00022465,4]
[346105555,1734706255504,-500.0,0.00022465,4]
[346105556,1734706255514,-727.11,0.00022465,4]
[346105557,1734706255523,-500.0,0.00022465,4]
[346105558,1734706255533,-500.0,0.00022465,4]
[346105559,1734706255544,-500.0,0.00022465,4]
[346105560,1734706255553,-647.27,0.00022465,4]
[346105561,1734706255563,-500.0,0.00022465,4]
[346105562,1734706255573,-2756.52,0.00022465,4]
[346105563,1734706255582,-828.43,0.00022465,4]
[346105564,1734706255592,-500.0,0.00022465,4]
[346105565,1734706255601,-696.14,0.00022465,4]
[346105566,1734706255610,-500.0,0.00022465,4]
[346105567,1734706255620,-1639.23,0.00022465,4]
[346105568,1734706255629,-500.0,0.00022465,4]
[346105569,1734706255639,-9762.21,0.00022465,4]
[346105570,1734706255649,-1144.67,0.00022465,4]
[346105571,1734706255660,-1051.74,0.00022465,4]
[346105572,1734706255671,-688.86,0.00022465,4]
[346105573,1734706255681,-531.8,0.00022465,4]
[346105574,1734706255690,-500.0,0.00022465,4]
[346105575,1734706255701,-500.0,0.00022465,4]
[346105576,1734706255711,-500.0,0.00022465,4]
[346105577,1734706255720,-4042.65,0.00022465,4]
[346105578,1734706255729,-500.0,0.00022465,4]
[346105579,1734706255739,-913.81,0.00022465,4]
[346105580,1734706255749,-1657.48,0.00022465,4]
[346105581,1734706255758,-1139.77,0.00022465,4]
[346105582,1734706255768,-500.0,0.00022465,4]
[346105583,1734706255777,-1298.5,0.00022465,4]
[346105584,1734706255789,-500.0,0.00022465,4]
[346105585,1734706255799,-2750.19,0.00022465,4]
[346105586,1734706255808,-500.0,0.00022465,4]
[346105587,1734706255818,-1719.51,0.00022465,4]
[346105588,1734706255827,-500.0,0.00022465,4]
[346105589,1734706255838,-1028.29,0.00022465,4]
[346105590,1734706255847,-500.0,0.00022465,4]
[346105591,1734706255857,-500.0,0.00022465,4]
[346105592,1734706255867,-1101.52,0.00022465,4]
[346105593,1734706255876,-1355.77,0.00022465,4]
[346105594,1734706255885,-194.4112338,0.00022465,4]
[346105595,1734706255895,-500.0,0.00022465,4]
[346105596,1734706255904,-500.0,0.00022465,4]
[346105597,1734706255915,-1403.12,0.00022465,4]
[346105598,1734706255924,-500.0,0.00022465,4]
[346105599,1734706255934,-500.0,0.00022465,4]
[346105600,1734706255943,-500.0,0.00022465,4]
[346105601,1734706255952,-2413.98,0.00022465,4]
[346105602,1734706255961,-1096.54,0.00022465,4]
[346105603,1734706255971,-1447.53,0.00022465,4]
[346105604,1734706255980,-2100.15,0.00022465,4]
[346105605,1734706255989,-646.3378261,0.00022465,4]
[346105606,1734706255999,-500.0,0.00022465,4]
[346105607,1734706256009,-1164.92,0.00022465,4]
[346105608,1734706256019,-500.0,0.00022465,4]
[346105609,1734706256028,-806.07,0.00022465,4]
[346105610,1734706256041,-500.0,0.00022465,4]
[346105611,1734706256050,-946.66,0.00022465,4]
[346105612,1734706256059,-500.0,0.00022465,4]
[346105613,1734706256069,-2139.52,0.00022465,4]
[346105614,1734706256079,-500.0,0.00022465,4]
[346105615,1734706256088,-9726.29,0.00022465,4]
[346105616,1734706256097,-1420.63,0.00022465,4]
[346105617,1734706256107,-500.0,0.00022465,4]
[346105618,1734706256116,-1128.68,0.00022465,4]
[346105619,1734706256126,-500.0,0.00022465,4]
[346105620,1734706256135,-500.0,0.00022465,4]
[346105621,1734706256144,-500.0,0.00022465,4]
[346105622,1734706256154,-500.0,0.00022465,4]
[346105623,1734706256163,-2084.41,0.00022465,4]
[346105624,1734706256173,-500.0,0.00022465,4]
[346105625,1734706256183,-1010.95,0.00022465,4]
[346105626,1734706256193,-500.0,0.00022465,4]
[346105627,1734706256202,-500.0,0.00022465,4]
[346105628,1734706256212,-3050.34,0.00022465,4]
[346105629,1734706256223,-1673.65,0.00022465,4]
[346105630,1734706256233,-500.0,0.00022465,4]
[346105631,1734706256243,-500.0,0.00022465,4]
[346105632,1734706256253,-1176.91,0.00022465,4]
[346105633,1734706256263,-1000.0,0.00022465,4]
[346105634,1734706256273,-500.0,0.00022465,4]
[346105635,1734706256282,-589.28,0.00022465,4]
[346105636,1734706256294,-725.97,0.00022465,4]
[346105637,1734706256304,-500.0,0.00022465,4]
[346105638,1734706256314,-500.0,0.00022465,4]
[346105639,1734706256324,-1104.52,0.00022465,4]
[346105640,1734706256334,-241.43199006,0.00022465,4]
[346105641,1734706256343,-500.0,0.00022465,4]
[346105642,1734706256353,-500.0,0.00022465,4]
[346105643,1734706256363,-830.63,0.00022465,4]
[346105644,1734706256373,-767.18,0.00022465,4]
[346105645,1734706256382,-500.0,0.00022465,4]
[346105646,1734706256392,-500.0,0.00022465,4]
[346105647,1734706256401,-500.0,0.00022465,4]
[346105648,1734706256411,-934.5,0.00022465,4]
[346105649,1734706256421,-518.41,0.00022465,4]
[346105650,1734706256431,-517.06,0.00022465,4]
[346105651,1734706256440,-709.19,0.00022465,4]
[346105652,1734706256450,-681.89,0.00022465,4]
[346105653,1734706256460,-500.0,0.00022465,4]
[346105654,1734706256470,-1168.93,0.00022465,4]
[346105655,1734706256480,-500.0,0.00022465,4]
[346105656,1734706256490,-500.0,0.00022465,4]
[346105657,1734706256499,-7786.57,0.00022465,4]
[346105658,1734706256509,-500.0,0.00022465,4]
[346105659,1734706256518,-500.0,0.00022465,4]
[346105660,1734706256528,-500.0,0.00022465,4]
[346105661,1734706256540,-1513.63,0.00022465,4]
[346105662,1734706256549,-500.0,0.00022465,4]
[346105663,1734706256559,-1594.97,0.00022465,4]
[346105664,1734706256569,-4930.1,0.00022465,4]
[346105665,1734706256578,-500.0,0.00022465,4]
[346105666,1734706256587,-722.19,0.00022465,4]
[346105667,1734706256597,-570.24,0.00022465,4]
[346105668,1734706256606,-535.21,0.00022465,4]
[346105669,1734706256616,-500.0,0.00022465,4]
[346105670,1734706256627,-704.71,0.00022465,4]
[346105671,1734706256636,-661.16,0.00022465,4]
[346105672,1734706256646,-500.0,0.00022465,4]
[346105673,1734706256657,-871.46,0.00022465,4]
[346105674,1734706256670,-500.0,0.00022465,4]
[346105675,1734706256680,-500.0,0.00022465,4]
[346105676,1734706256690,-500.0,0.00022465,4]
[346105677,1734706256702,-827.8,0.00022465,4]
[346105678,1734706256711,-500.0,0.00022465,4]
[346105679,1734706256721,-1165.6,0.00022465,4]
[346105680,1734706256730,-1055.56,0.00022465,4]
[346105681,1734706256741,-500.0,0.00022465,4]
[346105682,1734706256750,-500.0,0.00022465,4]
[346105683,1734706256759,-821.14,0.00022465,4]
[346105684,1734706256769,-500.0,0.00022465,4]
[346105685,1734706256778,-500.0,0.00022465,4]
[346105686,1734706256789,-500.0,0.00022465,4]
[346105687,1734706256798,-1326.77,0.00022465,4]
[346105688,1734706256808,-500.0,0.00022465,4]
[346105689,1734706256817,-500.0,0.00022465,4]
[346105690,1734706256827,-500.0,0.00022465,4]
[346105691,1734706256836,-500.0,0.00022465,4]
[346105692,1734706256846,-535.94,0.00022465,4]
[346105693,1734706256855,-625.47,0.00022465,4]
[346105694,1734706256864,-500.0,0.00022465,4]
[346105695,1734706256874,-500.0,0.00022465,4]
[346105696,1734706256883,-194.61967796,0.00022465,4]
[346105697,1734706256892,-1263.28,0.00022465,4]
[346105698,1734706256901,-500.0,0.00022465,4]
[346105699,1734706256910,-794.37,0.00022465,4]
[346105700,1734706256920,-649.77647315,0.00022465,4]
[346105701,1734706256929,-500.0,0.00022465,4]
[346105702,1734706256939,-330.19863391,0.00022465,4]
[346105703,1734706256949,-500.0,0.00022465,4]
[346105704,1734706256958,-500.0,0.00022465,4]
[346105705,1734706256968,-511.24,0.00022465,4]
[346105706,1734706256977,-500.0,0.00022465,4]
[346105707,1734706256987,-500.0,0.00022465,4]
[346105708,1734706256995,-1471.35,0.00022465,4]
[346105709,1734706257005,-718.66738302,0.00022497,2]
[346105710,1734706257014,-161.36,0.00022505,2]
[346105711,1734706257023,-150.0,0.00022529,4]
[346105712,1734706257032,-1054.59752134,0.0002254,2]
[346105713,1734706257044,-150.0,0.00022572,4]
[346105714,1734706257053,-150.0,0.00022589,4]
[346105715,1734706257062,-150.0,0.00022606,4]
[346105716,1734706257072,-209.5653125,0.0002263,2]
[346105717,1734706257081,-1986.90059895,0.00022634,2]
[346105718,1734706257090,-718.66738302,0.00022653,2]
[346105719,1734706257099,-150.0,0.00022683,4]
[346105720,1734706257109,-566.416,0.0002269,2]
[346105721,1734706257119,-3000.0,0.000227,2]
[346105722,1734706257129,-500.0,0.00022721,2]
[346105723,1734706257138,-150.0,0.00022722,4]
[346105724,1734706257148,-150.0,0.00022722,4]
[346105725,1734706257158,-30000.00000099,0.00022737,14]
[346105726,1734706257167,-500.0,0.00022738,2]
[346105727,1734706257177,-294.213242,0.00022739,4]
[346105728,1734706257186,-500.0,0.00022739,4]
[346105729,1734706257196,-500.0,0.00022739,4]
[346105730,1734706257204,-260.901097,0.00022739,4]
[346105731,1734706257214,-500.0,0.00022739,4]
[346105732,1734706257224,-500.0,0.00022739,4]
[346105733,1734706257233,-502.55,0.00022739,4]
[346105734,1734706257242,-500.0,0.00022739,4]
[346105735,1734706257252,-500.0,0.00022739,4]
[346105736,1734706257261,-500.0,0.00022739,4]
[346105737,1734706257271,-500.0,0.00022739,4]
[346105738,1734706257280,-500.0,0.00022739,4]
[346105739,1734706257291,-637.44314489,0.00022739,4]
[346105740,1734706257300,-589.30908062,0.00022739,4]
[346105741,1734706257310,-500.0,0.00022739,4]
[346105742,1734706257320,-500.0,0.00022739,4]
[346105743,1734706257330,-500.0,0.00022739,4]
[346105744,1734706257339,-500.0,0.00022739,4]
[346105745,1734706257348,-500.0,0.00022739,4]
[346105746,1734706257358,-500.0,0.00022739,4]
[346105747,1734706257367,-500.0,0.00022739,4]
[346105748,1734706257377,-500.0,0.00022739,4]
[346105749,1734706257386,-500.0,0.00022739,4]
[346105750,1734706257396,-500.0,0.00022739,4]
[346105751,1734706257406,-242.13231599,0.00022739,4]
[346105752,1734706257415,-500.0,0.00022739,4]
[346105753,1734706257425,-500.0,0.00022739,4]
[346105754,1734706257434,-453.86,0.00022739,4]
[346105755,1734706257444,-500.0,0.00022739,4]
[346105756,1734706257453,-308.95331772,0.00022739,4]
[346105757,1734706257462,-500.0,0.00022739,4]
[346105758,1734706257471,-500.0,0.00022739,4]
[346105759,1734706257481,-500.0,0.00022739,4]
[346105760,1734706257491,-500.0,0.00022739,4]
[346105761,1734706257500,-525.83,0.00022739,4]
[346105762,1734706257509,-500.0,0.00022739,4]
[346105763,1734706257519,-500.0,0.00022739,4]
[346105764,1734706257528,-500.0,0.00022739,4]
[346105765,1734706257539,-500.0,0.00022739,4]
[346105766,1734706257549,-500.0,0.00022739,4]
[346105767,1734706257559,-558.91,0.00022739,4]
[346105768,1734706257569,-517.83,0.00022739,4]
[346105769,1734706257578,-500.0,0.00022739,4]
[346105770,1734706257588,-639.87,0.00022739,4]
[346105771,1734706257598,-500.0,0.00022739,4]
[346105772,1734706257607,-500.0,0.00022739,4]
[346105773,1734706257617,-833.18,0.00022739,4]
[346105774,1734706257626,-500.0,0.00022739,4]
[346105775,1734706257636,-680.33,0.00022739,4]
[346105776,1734706257645,-500.0,0.00022739,4]
[346105777,1734706257655,-500.0,0.00022739,4]
[346105778,1734706257668,-500.0,0.00022739,4]
[346105779,1734706257678,-1075.01,0.00022739,4]
[346105780,1734706257688,-615.34,0.00022739,4]
[346105781,1734706257698,-500.0,0.00022739,4]
[346105782,1734706257710,-500.0,0.00022739,4]
[346105783,1734706257719,-500.0,0.00022739,4]
[346105784,1734706257729,-597.01,0.00022739,4]
[346105785,1734706257739,-500.0,0.00022739,4]
[346105786,1734706257749,-500.0,0.00022739,4]
[346105787,1734706257758,-618.08,0.00022739,4]
[346105788,1734706257767,-500.0,0.00022739,2]
[346105789,1734706257777,-495.85891658,0.00022739,4]
[346105790,1734706257788,-500.0,0.00022739,4]
[346105791,1734706257798,-642.14,0.00022739,4]
[346105792,1734706257808,-500.0,0.00022739,4]
[346105793,1734706257817,-500.0,0.00022739,4]
[346105794,1734706257826,-786.34,0.00022739,4]
[346105795,1734706257835,-500.0,0.00022739,4]
[346105796,1734706257845,-648.83,0.00022739,4]
[346105797,1734706257854,-500.0,0.00022739,4]
[346105798,1734706257863,-289.89487291,0.00022739,4]
[346105799,1734706257873,-515.43,0.00022739,4]
[346105800,1734706257883,-643.63,0.00022739,4]
[346105801,1734706257892,-500.0,0.00022739,4]
[346105802,1734706257902,-861.69,0.00022739,4]
[346105803,1734706257911,-500.0,0.00022739,4]
[346105804,1734706257920,-500.0,0.00022739,4]
[346105805,1734706257930,-500.0,0.00022739,4]
[346105806,1734706257939,-500.0,0.00022739,4]
[346105807,1734706257948,-500.0,0.00022739,4]
[346105808,1734706257959,-500.0,0.00022739,4]
[346105809,1734706257968,-500.0,0.00022739,4]
[346105810,1734706257977,-622.87192997,0.00022739,4]
[346105811,1734706257987,-500.0,0.00022739,4]
[346105812,1734706257996,-500.0,0.00022739,4]
[346105813,1734706258006,-500.0,0.00022739,4]
[346105814,1734706258015,-500.0,0.00022739,4]
[346105815,1734706258026,-564.26,0.00022739,4]
[346105816,1734706258035,-500.0,0.00022739,4]
[346105817,1734706258045,-500.0,0.00022739,4]
[346105818,1734706258055,-500.0,0.00022739,4]
[346105819,1734706258064,-500.0,0.00022739,4]
[346105820,1734706258073,-500.0,0.00022739,4]
[346105821,1734706258083,-500.0,0.00022739,4]
[346105822,1734706258092,-500.0,0.00022739,4]
[346105823,1734706258101,-701.77,0.00022739,4]
[346105824,1734706258111,-500.0,0.00022739,4]
[346105825,1734706258120,-683.55,0.00022739,4]
[346105826,1734706258130,-500.0,0.00022739,4]
[346105827,1734706258139,-500.0,0.00022739,4]
[346105828,1734706258148,-500.0,0.00022739,4]
[346105829,1734706258157,-500.0,0.00022739,4]
[346105830,1734706258167,-500.0,0.00022739,4]
[346105831,1734706258176,-500.0,0.00022739,4]
[346105832,1734706258186,-819.12,0.00022739,4]
[346105833,1734706258196,-551.65,0.00022739,4]
[346105834,1734706258206,-660.1,0.00022739,4]
[346105835,1734706258215,-500.0,0.00022739,4]
[346105836,1734706258225,-500.0,0.00022739,4]
[346105837,1734706258235,-500.0,0.00022739,4]
[346105838,1734706258244,-803.14,0.00022739,4]
[346105839,1734706258253,-500.0,0.00022739,4]
[346105840,1734706258263,-500.0,0.00022739,4]
[346105841,1734706258272,-745.51,0.00022739,4]
[346105842,1734706258281,-500.0,0.00022739,4]
[346105843,1734706258294,-500.0,0.00022739,4]
[346105844,1734706258303,-500.0,0.00022739,4]
[346105845,1734706258313,-500.0,0.00022739,4]
[346105846,1734706258322,-841.98,0.00022739,4]
[346105847,1734706258332,-259.3803196,0.00022739,4]
[346105848,1734706258342,-500.0,0.00022739,4]
[346105849,1734706258351,-500.0,0.00022739,4]
[346105850,1734706258361,-637.76,0.00022739,4]
[346105851,1734706258373,-500.54,0.00022739,4]
[346105852,1734706258382,-500.0,0.00022739,4]
[346105853,1734706258392,-500.0,0.00022739,4]
[346105854,1734706258401,-500.0,0.00022739,4]
[346105855,1734706258410,-500.0,0.00022739,4]
[346105856,1734706258420,-500.0,0.00022739,4]
[346105857,1734706258429,-500.0,0.00022739,4]
[346105858,1734706258439,-500.0,0.00022739,4]
[346105859,1734706258449,-1415.46,0.00022739,4]
[346105860,1734706258458,-500.0,0.00022739,4]
[346105861,1734706258467,-721.22,0.00022739,4]
[346105862,1734706258476,-606.15,0.00022739,4]
[346105863,1734706258486,-527.65,0.00022739,4]
[346105864,1734706258495,-1380.54,0.00022739,4]
[346105865,1734706258504,-500.0,0.00022739,4]
[346105866,1734706258513,-500.0,0.00022739,4]
[346105867,1734706258523,-751.8,0.00022739,4]
[346105868,1734706258532,-577.71,0.00022739,4]
[346105869,1734706258544,-619.03,0.00022739,4]
[346105870,1734706258554,-572.05,0.00022739,4]
[346105871,1734706258563,-669.68,0.00022739,4]
[346105872,1734706258573,-654.18,0.00022739,4]
[346105873,1734706258582,-689.33,0.00022739,4]
[346105874,1734706258592,-500.0,0.00022739,4]
[346105875,1734706258601,-500.0,0.00022739,4]
[346105876,1734706258610,-500.0,0.00022739,4]
[346105877,1734706258620,-500.0,0.00022739,4]
[346105878,1734706258630,-500.0,0.00022739,4]
[346105879,1734706258639,-500.0,0.00022739,4]
[346105880,1734706258649,-607.77,0.00022739,4]
[346105881,1734706258659,-500.0,0.00022739,4]
[346105882,1734706258670,-500.0,0.00022739,4]
[346105883,1734706258680,-500.0,0.00022739,4]
[346105884,1734706258691,-554.27,0.00022739,4]
[346105885,1734706258701,-500.0,0.00022739,4]
[346105886,1734706258711,-500.0,0.00022739,4]
[346105887,1734706258721,-500.0,0.00022739,4]
[346105888,1734706258732,-294.85083012,0.00022739,4]
[346105889,1734706258743,-500.0,0.00022739,4]
[346105890,1734706258752,-778.32,0.00022739,4]
[346105891,1734706258762,-500.0,0.00022739,4]
[346105892,1734706258772,-500.0,0.00022739,4]
[346105893,1734706258782,-500.0,0.00022739,4]
[346105894,1734706258794,-500.0,0.00022739,4]
[346105895,1734706258804,-508.44,0.00022739,4]
[346105896,1734706258815,-500.0,0.00022739,4]
[346105897,1734706258825,-500.0,0.00022739,4]
[346105898,1734706258834,-500.0,0.00022739,4]
[346105899,1734706258844,-500.0,0.00022739,4]
[346105900,1734706258854,-500.0,0.00022739,4]
[346105901,1734706258864,-504.84463925,0.00022739,4]
[346105902,1734706258873,-500.0,0.00022739,4]
[346105903,1734706258883,-500.0,0.00022739,4]
[346105904,1734706258893,-500.0,0.00022739,4]
[346105905,1734706258903,-500.0,0.00022739,4]
[346105906,1734706258912,-500.0,0.00022739,4]
[346105907,1734706258922,-500.0,0.00022739,4]
[346105908,1734706258931,-500.0,0.00022739,4]
[346105909,1734706258941,-500.0,0.00022739,4]
[346105910,1734706258951,-500.0,0.00022739,4]
[346105911,1734706258961,-500.0,0.00022739,4]
[346105912,1734706258972,-499.61227464,0.00022739,4]
[346105913,1734706258981,-500.0,0.00022739,4]
[346105914,1734706258991,-610.76,0.00022739,4]
[346105915,1734706259001,-245.68006907,0.00022739,4]
[346105916,1734706259011,-632.09,0.00022739,4]
[346105917,1734706259021,-500.0,0.00022739,4]
[346105918,1734706259031,-511.2,0.00022739,4]
[346105919,1734706259042,-500.0,0.00022739,4]
[346105920,1734706259053,-500.0,0.00022739,4]
[346105921,1734706259062,-500.0,0.00022739,4]
[346105922,1734706259071,-500.0,0.00022739,4]
[346105923,1734706259081,-500.0,0.00022739,4]
[346105924,1734706259091,-500.0,0.00022739,4]
[346105925,1734706259101,-925.32,0.00022739,4]
[346105926,1734706259111,-565.54809438,0.00022739,4]
[346105927,1734706259120,-500.0,0.00022739,4]
[346105928,1734706259130,-500.0,0.00022739,4]
[346105929,1734706259140,-285.98635,0.00022739,4]
[346105930,1734706259150,-500.0,0.00022739,4]
[346105931,1734706259160,-822.47,0.00022739,4]
[346105932,1734706259170,-500.0,0.00022739,4]
[346105933,1734706259180,-500.0,0.00022739,4]
[346105934,1734706259190,-1757.83,0.00022739,4]
[346105935,1734706259201,-617.61,0.00022739,4]
[346105936,1734706259211,-1104.64,0.00022739,4]
[346105937,1734706259220,-626.53610792,0.00022739,4]
[346105938,1734706259230,-502.16,0.00022739,4]
[346105939,1734706259240,-1801.99,0.00022739,4]
[346105940,1734706259251,-835.37,0.00022739,4]
[346105941,1734706259262,-659.58,0.00022739,4]
[346105942,1734706259272,-500.0,0.00022739,4]
[346105943,1734706259283,-500.0,0.00022739,4]
[346105944,1734706259295,-1099.88,0.00022739,4]
[346105945,1734706259306,-500.0,0.00022739,4]
[346105946,1734706259315,-1644.62,0.00022739,4]
[346105947,1734706259327,-511.31,0.00022739,4]
[346105948,1734706259337,-500.0,0.00022739,4]
[346105949,1734706259347,-575.67,0.00022739,4]
[346105950,1734706259358,-634.41,0.00022739,4]
[346105951,1734706259369,-759.0,0.00022739,4]
[346105952,1734706259380,-1240.16,0.00022739,4]
[346105953,1734706259390,-500.0,0.00022739,4]
[346105954,1734706259400,-3305.88,0.00022739,4]
[346105955,1734706259411,-567.37,0.00022739,4]
[346105956,1734706259421,-500.0,0.00022739,4]
[346105957,1734706259431,-500.0,0.00022739,4]
[346105958,1734706259442,-500.0,0.00022739,4]
[346105959,1734706259453,-500.0,0.00022739,4]
[346105960,1734706259463,-500.0,0.00022739,4]
[346105961,1734706259472,-500.0,0.00022739,4]
[346105962,1734706259482,-2238.55,0.00022739,4]
[346105963,1734706259492,-544.44,0.00022739,4]
[346105964,1734706259502,-500.0,0.00022739,4]
[346105965,1734706259512,-500.0,0.00022739,4]
[346105966,1734706259522,-500.0,0.00022739,4]
[346105967,1734706259532,-500.0,0.00022739,4]
[346105968,1734706259544,-1944.32,0.00022739,4]
[346105969,1734706259555,-392.72058841,0.00022739,4]
[346105970,1734706259565,-1038.55,0.00022739,4]
[346105971,1734706259576,-500.0,0.00022739,4]
[346105972,1734706259587,-3471.44,0.00022739,4]
[346105973,1734706259597,-500.0,0.00022739,4]
[346105974,1734706259607,-500.0,0.00022739,4]
[346105975,1734706259617,-500.0,0.00022739,4]
[346105976,1734706259627,-762.32,0.00022739,4]
[346105977,1734706259637,-500.0,0.00022739,4]
[346105978,1734706259647,-500.0,0.00022739,4]
[346105979,1734706259660,-1011.14,0.00022739,4]
[346105980,1734706259671,-543.28,0.00022739,4]
[346105981,1734706259681,-500.0,0.00022739,4]
[346105982,1734706259691,-500.0,0.00022739,4]
[346105983,1734706259702,-500.0,0.00022739,4]
[346105984,1734706259713,-655.46,0.00022739,4]
[346105985,1734706259723,-981.9,0.00022739,4]
[346105986,1734706259733,-1847.66,0.00022739,4]
[346105987,1734706259745,-290.62246263,0.00022739,4]
[346105988,1734706259756,-1676.58,0.00022739,4]
[346105989,1734706259767,-500.0,0.00022739,4]
[346105990,1734706259777,-510.84,0.00022739,4]
[346105991,1734706259790,-1032.97,0.00022739,4]
[346105992,1734706259801,-500.0,0.00022739,4]
[346105993,1734706259811,-256.62207738,0.00022739,4]
[346105994,1734706259821,-500.0,0.00022739,4]
[346105995,1734706259832,-628.86,0.00022739,4]
[346105996,1734706259842,-1541.57,0.00022739,4]
[346105997,1734706259853,-500.0,0.00022739,4]
[346105998,1734706259862,-2244.96,0.00022739,4]
[346105999,1734706259873,-374.35836105,0.00022739,4]
[346106000,1734706259883,-500.0,0.00022739,4]
[346106001,1734706259893,-812.21,0.00022739,4]
[346106002,1734706259904,-500.0,0.00022739,4]
[346106003,1734706259914,-500.0,0.00022739,4]
[346106004,1734706259923,-500.0,0.00022739,4]
[346106005,1734706259934,-1809.6,0.00022739,4]
[346106006,1734706259944,-500.0,0.00022739,4]
[346106007,1734706259955,-500.0,0.00022739,4]
[346106008,1734706259966,-500.0,0.00022739,4]
[346106009,1734706259976,-500.0,0.00022739,4]
[346106010,1734706259986,-500.0,0.00022739,4]
[346106011,1734706259997,-727.11,0.00022739,4]
[346106012,1734706260007,-500.0,0.00022739,4]
[346106013,1734706260017,-500.0,0.00022739,4]
[346106014,1734706260027,-500.0,0.00022739,4]
[346106015,1734706260039,-647.27,0.00022739,4]
[346106016,1734706260050,-183.55077244,0.00022739,4]
[346106017,1734706260061,-2756.52,0.00022739,4]
[346106018,1734706260072,-828.43,0.00022739,4]
[346106019,1734706260083,-500.0,0.00022739,4]
[346106020,1734706260094,-696.14,0.00022739,4]
[346106021,1734706260104,-500.0,0.00022739,4]
[346106022,1734706260114,-1639.23,0.00022739,4]
[346106023,1734706260124,-468.25868831,0.00022739,4]
[346106024,1734706260133,-9762.21,0.00022739,4]
[346106025,1734706260144,-1144.67,0.00022739,4]
[346106026,1734706260155,-1051.74,0.00022739,4]
[346106027,1734706260165,-688.86,0.00022739,4]
[346106028,1734706260176,-531.8,0.00022739,4]
[346106029,1734706260186,-500.0,0.00022739,4]
[346106030,1734706260196,-500.0,0.00022739,4]
[346106031,1734706260206,-500.0,0.00022739,4]
[346106032,1734706260216,-4042.65,0.00022739,4]